bitfinex/quotes_BTCUSD_20240721
["timestamp","ask_amount","ask_price","bid_price","bid_amount"]
[1721523638859,0.00838,67165.0,67164.0,1.78694862]
[1721523639082,0.00838,67165.0,67164.0,1.83694862]
[1721523639284,0.00838,67165.0,67164.0,1.71734862]
[1721523639513,0.00838,67165.0,67164.0,1.78694862]
[1721523640431,0.00838,67165.0,67164.0,1.76198996]
[1721523640635,0.00838,67165.0,67164.0,1.83158653]
[1721523643158,0.00838,67165.0,67164.0,1.88158653]
[1721523643717,0.00838,67165.0,67164.0,1.88157867]
[1721523644756,0.00838,67165.0,67164.0,1.83157867]
[1721523645569,0.00838,67165.0,67164.0,1.73694493]
[1721523645975,0.00838,67165.0,67164.0,1.78694493]
[1721523646186,0.00838,67165.0,67164.0,1.73694493]
[1721523646843,0.00838,67165.0,67164.0,1.73694698]
[1721523650178,0.00838,67165.0,67164.0,1.86055786]
[1721523650450,0.00838,67165.0,67164.0,2.04597482]
[1721523650647,0.00838,67165.0,67164.0,2.04597463]
[1721523652577,0.00838,67165.0,67164.0,2.09060279]
[1721523652793,0.00838,67165.0,67164.0,2.04597463]
[1721523653215,0.00838,67165.0,67164.0,2.04597518]
[1721523653521,0.00838,67165.0,67164.0,1.98207518]
[1721523654212,0.08478,67165.0,67164.0,0.78845944]
[1721523654458,0.2393057,67165.0,67164.0,0.60304227]
[1721523655600,0.2393057,67165.0,67164.0,0.90082027]
[1721523656015,0.23931102,67165.0,67164.0,0.90082027]
[1721523656167,0.23931102,67165.0,67164.0,0.77720882]
[1721523656376,0.23931102,67165.0,67164.0,0.90083388]
[1721523656658,0.08478,67165.0,67164.0,0.90083388]
[1721523656953,0.23931072,67165.0,67164.0,0.90083388]
[1721523658700,0.08478,67165.0,67164.0,0.90083388]
[1721523658869,0.23931204,67165.0,67164.0,0.90083388]
[1721523659501,0.23931204,67165.0,67164.0,0.90083445]
[1721523662102,0.23931204,67165.0,67164.0,0.60305645]
[1721523662319,1.13224287,67165.0,67164.0,0.31283228]
[1721523662522,1.43001687,67165.0,67164.0,0.43266322]
[1721523662726,1.34552104,67165.0,67164.0,0.43266322]
[1721523662930,1.34552104,67165.0,67164.0,0.30902826]
[1721523663585,1.52290278,67165.0,67164.0,0.30902826]
[1721523663793,2.01000933,67165.0,67164.0,0.30902826]
[1721523663999,1.68928212,67165.0,67164.0,0.30902826]
[1721523664268,1.66706014,67165.0,67164.0,0.30902826]
[1721523664471,1.62272031,67165.0,67164.0,0.30902826]
[1721523664902,1.66705924,67165.0,67164.0,0.30902826]
[1721523665334,1.62272031,67165.0,67164.0,0.30902826]
[1721523666163,1.62272031,67165.0,67159.0,0.01770954]
[1721523666368,0.88369,67160.0,67159.0,0.01770954]
[1721523668672,0.585921,67156.0,67155.0,0.01863354]
[1721523668877,0.883735,67156.0,67155.0,0.01863354]
[1721523670232,1.181549,67156.0,67155.0,0.000924]
[1721523670434,1.3066621,67156.0,67155.0,0.000924]
[1721523676660,1.48404384,67156.0,67155.0,0.000924]
[1721523677077,1.35893074,67156.0,67155.0,0.000924]
[1721523677291,0.883735,67156.0,67155.0,0.000924]
[1721523677718,0.88358611,67156.0,67155.0,0.000924]
[1721523688951,0.44657211,67156.0,67155.0,0.01863354]
[1721523689152,0.44657211,67156.0,67155.0,0.16263354]
[1721523689331,0.44657211,67156.0,67155.0,0.16651604]
[1721523690755,0.14875811,67156.0,67155.0,0.16651604]
[1721523690955,0.44657211,67156.0,67155.0,0.16651604]
[1721523691089,0.44657211,67156.0,67155.0,0.29017691]
[1721523693684,0.14875811,67156.0,67155.0,0.29017691]
[1721523694220,0.148903,67158.0,67157.0,0.01770954]
[1721523694494,0.248903,67158.0,67157.0,0.14525169]
[1721523695090,0.546708,67158.0,67157.0,0.14525169]
[1721523695537,0.248903,67158.0,67157.0,0.14525169]
[1721523696569,0.248903,67158.0,67157.0,0.02159082]
[1721523696781,0.248903,67158.0,67157.0,0.14525169]
[1721523697319,0.1,67158.0,67157.0,0.14525169]
[1721523697526,0.00838,67165.0,67164.0,0.16659854]
[1721523697725,0.00838,67165.0,67164.0,0.73203741]
[1721523697928,0.00838,67165.0,67164.0,0.73591778]
[1721523699287,0.00838,67165.0,67164.0,0.28925078]
[1721523699642,0.00838,67165.0,67164.0,0.16558991]
[1721523699840,0.00838,67165.0,67164.0,0.28923186]
[1721523700163,0.00838,67165.0,67164.0,0.28922879]
[1721523702678,0.00838,67165.0,67164.0,0.16558991]
[1721523702882,0.00838,67165.0,67164.0,0.28922993]
[1721523703134,0.00838,67165.0,67164.0,0.28922994]
[1721523703894,0.00838,67165.0,67164.0,0.43811894]
[1721523705715,0.00838,67165.0,67164.0,1.55543468]
[1721523705921,0.00838,67165.0,67164.0,1.55541285]
[1721523712263,0.00838,67165.0,67164.0,1.55541222]
[1721523715420,0.91676,67166.0,67165.0,0.76214454]
[1721523715690,0.91676,67166.0,67165.0,1.17914426]
[1721523715833,0.91676,67166.0,67165.0,1.18299379]
[1721523716152,0.91676,67166.0,67165.0,0.73083805]
[1721523716350,0.91676,67166.0,67165.0,0.36906405]
[1721523718420,0.91676,67166.0,67165.0,0.24544607]
[1721523718658,0.91676,67166.0,67165.0,0.36907022]
[1721523718794,0.91676,67166.0,67165.0,0.29407022]
[1721523721141,0.91676,67166.0,67165.0,0.29407174]
[1721523724212,1.065644,67166.0,67165.0,0.14518472]
[1721523724427,1.363413,67166.0,67165.0,0.14518472]
[1721523724690,1.363413,67166.0,67165.0,0.14518939]
[1721523727223,1.065644,67166.0,67165.0,0.14519254]
[1721523727423,0.91676,67166.0,67165.0,0.14519254]
[1721523730324,0.91676,67166.0,67165.0,0.14519182]
[1721523732203,0.9176,67166.0,67165.0,0.14519182]
[1721523733465,0.9176,67166.0,67165.0,0.14518823]
[1721523734302,0.9176,67166.0,67165.0,0.67484923]
[1721523736672,0.9176,67166.0,67165.0,0.37707635]
[1721523736886,0.9176,67166.0,67165.0,0.22818935]
[1721523738614,0.9176,67166.0,67165.0,0.37707635]
[1721523738998,0.9176,67166.0,67165.0,0.73525035]
[1721523739876,0.9176,67166.0,67165.0,0.61162007]
[1721523740070,0.9176,67166.0,67165.0,0.7352492]
[1721523742020,0.9176,67166.0,67165.0,0.73524896]
[1721523742644,0.9176,67166.0,67165.0,1.03302296]
[1721523743065,0.9176,67166.0,67165.0,1.03302122]
[1721523743269,0.9176,67166.0,67165.0,1.48517696]
[1721523743877,0.9176,67166.0,67165.0,1.48517222]
[1721523744123,0.9176,67166.0,67165.0,1.67059905]
[1721523746221,0.9176,67166.0,67165.0,1.67059037]
[1721523748513,0.9176,67166.0,67165.0,1.67059027]
[1721523750090,0.9176,67166.0,67165.0,1.67059042]
[1721523750459,0.9176,67166.0,67165.0,1.72275294]
[1721523752542,0.9176,67166.0,67165.0,1.36154981]
[1721523752780,0.9176,67166.0,67165.0,1.72275288]
[1721523754056,0.9176,67166.0,67165.0,1.48516603]
[1721523754862,0.9176,67166.0,67165.0,0.14517529]
[1721523755066,1.60486,67166.0,67165.0,0.12746575]
[1721523755266,1.60486,67166.0,67165.0,0.14517529]
[1721523755440,1.60486,67166.0,67165.0,0.12361622]
[1721523755671,0.148887,67165.0,67164.0,0.01770954]
[1721523755853,0.148887,67165.0,67164.0,0.14134862]
[1721523756804,0.446661,67165.0,67164.0,0.14134862]
[1721523757220,0.9176,67166.0,67165.0,0.01770954]
[1721523757415,0.9176,67166.0,67165.0,0.14134862]
[1721523757638,1.066485,67166.0,67165.0,0.14519212]
[1721523758698,1.066485,67166.0,67165.0,0.02155304]
[1721523758900,1.066485,67166.0,67165.0,0.14518986]
[1721523759143,1.066485,67166.0,67165.0,0.14134636]
[1721523759343,1.066485,67166.0,67165.0,0.14518986]
[1721523759731,0.9176,67166.0,67165.0,0.14518986]
[1721523761925,0.9176,67166.0,67165.0,0.14518956]
[1721523762428,1.066484,67166.0,67165.0,0.14518956]
[1721523762833,0.9176,67166.0,67165.0,0.14518956]
[1721523765009,0.9176,67166.0,67165.0,0.14518903]
[1721523765593,0.9176,67166.0,67165.0,0.14611303]
[1721523766552,0.9176,67166.0,67165.0,0.59277403]
[1721523766753,0.9176,67166.0,67165.0,0.66237403]
[1721523771471,0.9176,67166.0,67165.0,0.66237237]
[1721523772301,0.9176,67166.0,67165.0,1.04204637]
[1721523774526,0.9176,67166.0,67165.0,1.04203826]
[1721523775041,0.9176,67166.0,67165.0,1.04203799]
[1721523775271,0.9186,67166.0,67165.0,1.11183799]
[1721523777220,0.9176,67166.0,67165.0,1.10483799]
[1721523777698,0.9186,67166.0,67165.0,1.11183543]
[1721523778110,0.9176,67166.0,67165.0,1.10483543]
[1721523778301,0.9186,67166.0,67165.0,1.11183543]
[1721523780589,0.9186,67166.0,67165.0,1.04903543]
[1721523780792,0.9186,67166.0,67165.0,1.04903736]
[1721523784711,1.0598,67166.0,67165.0,0.15310236]
[1721523784841,1.208684,67166.0,67165.0,0.15310236]
[1721523785469,0.9974,67166.0,67165.0,0.15310236]
[1721523785670,0.9186,67166.0,67165.0,0.15310236]
[1721523786427,0.9186,67166.0,67165.0,0.15310796]
[1721523786793,0.9186,67166.0,67165.0,0.02947704]
[1721523786998,0.9186,67166.0,67165.0,0.15310714]
[1721523787352,0.9186,67166.0,67165.0,0.30199414]
[1721523789166,0.9186,67166.0,67165.0,0.38189414]
[1721523789411,0.9186,67166.0,67165.0,0.44839414]
[1721523791277,0.9186,67166.0,67165.0,0.38189414]
[1721523791481,0.9186,67166.0,67165.0,0.15310714]
[1721523792515,0.9186,67166.0,67165.0,0.02947704]
[1721523792699,0.9186,67166.0,67165.0,0.15310494]
[1721523796698,0.9186,67166.0,67165.0,0.30199194]
[1721523797423,0.9186,67166.0,67165.0,0.3019926]
[1721523797977,0.91837667,67166.0,67165.0,0.3019926]
[1721523802277,0.91837667,67166.0,67165.0,0.30199235]
[1721523802481,0.91837667,67166.0,67165.0,0.15310535]
[1721523805409,0.91837667,67166.0,67165.0,0.15310608]
[1721523808709,0.91837667,67166.0,67165.0,0.15310604]
[1721523811841,0.91837667,67166.0,67165.0,0.02947704]
[1721523812043,0.91837667,67166.0,67165.0,0.15310608]
[1721523813414,0.91837667,67166.0,67165.0,0.29520608]
[1721523814648,0.91837667,67166.0,67165.0,0.23110608]
[1721523814851,0.91837667,67166.0,67165.0,0.10747704]
[1721523815203,0.91837667,67166.0,67165.0,0.23110533]
[1721523815772,0.91759074,67166.0,67165.0,0.23110533]
[1721523821552,0.91759074,67166.0,67165.0,0.23110523]
[1721523822278,0.91759074,67166.0,67165.0,0.15310523]
[1721523824375,2.17338174,67166.0,67165.0,0.13539569]
[1721523824512,1.8504295,67166.0,67165.0,0.1531194]
[1721523824712,1.8504295,67166.0,67165.0,0.14927673]
[1721523825059,1.85042915,67166.0,67165.0,0.14927673]
[1721523825217,1.80601274,67166.0,67165.0,0.14927673]
[1721523825849,1.80501274,67166.0,67165.0,0.14227673]
[1721523826205,1.80601274,67166.0,67165.0,0.14727673]
[1721523826404,0.91759074,67166.0,67165.0,0.14727673]
[1721523826643,0.91659074,67166.0,67165.0,0.14589236]
[1721523827083,0.91759074,67166.0,67165.0,0.15089236]
[1721523827487,0.91759074,67166.0,67165.0,0.15089108]
[1721523828842,0.91659074,67166.0,67165.0,0.14589108]
[1721523829226,0.91759074,67166.0,67165.0,0.15089108]
[1721523829873,0.91759074,67166.0,67165.0,0.14589108]
[1721523829874,1.06547474,67166.0,67165.0,0.14589108]
[1721523830252,1.06647474,67166.0,67165.0,0.15089108]
[1721523830448,1.21317474,67166.0,67165.0,0.15089108]
[1721523830672,1.21317474,67166.0,67165.0,0.15088578]
[1721523831491,1.14787474,67166.0,67165.0,0.15088578]
[1721523831689,1.06647474,67166.0,67165.0,0.15088578]
[1721523833815,1.06647474,67166.0,67165.0,0.15088595]
[1721523834420,1.36424374,67166.0,67165.0,0.15088595]
[1721523837160,1.36424374,67166.0,67165.0,0.15088696]
[1721523837565,1.36424374,67166.0,67165.0,0.02724917]
[1721523837766,1.36424374,67166.0,67165.0,0.15088696]
[1721523838061,1.36424374,67166.0,67165.0,0.14727133]
[1721523838298,1.36424374,67166.0,67165.0,0.1508873]
[1721523840093,1.36424374,67166.0,67165.0,0.02724951]
[1721523840296,1.36424374,67166.0,67165.0,0.22617252]
[1721523840504,1.36324374,67166.0,67165.0,0.22478849]
[1721523840917,1.36424374,67166.0,67165.0,0.23078849]
[1721523841067,1.36424374,67166.0,67165.0,0.15188849]
[1721523841267,1.36324374,67166.0,67165.0,0.14588849]
[1721523841678,1.36424374,67166.0,67165.0,0.15188849]
[1721523842479,1.36424374,67166.0,67165.0,0.15188797]
[1721523844220,1.36424374,67166.0,67165.0,0.14588797]
[1721523844221,1.36324374,67166.0,67165.0,0.14588797]
[1721523844631,1.36424374,67166.0,67165.0,0.15188797]
[1721523845054,1.36324374,67166.0,67165.0,0.14588797]
[1721523845485,1.36424374,67166.0,67165.0,0.15188797]
[1721523845688,1.36424374,67166.0,67165.0,0.15188807]
[1721523845970,1.36324374,67166.0,67165.0,0.14588807]
[1721523846152,1.36424374,67166.0,67165.0,0.15188807]
[1721523847643,1.36324374,67166.0,67165.0,0.14588807]
[1721523848009,1.36424374,67166.0,67165.0,0.15188807]
[1721523848251,1.36424374,67166.0,67165.0,0.14588807]
[1721523848487,1.36324374,67166.0,67165.0,0.14588807]
[1721523848688,1.36424374,67166.0,67165.0,0.15188807]
[1721523848941,1.36324374,67166.0,67165.0,0.14588769]
[1721523849428,1.36424374,67166.0,67165.0,0.02824951]
[1721523849643,1.36424374,67166.0,67165.0,0.15188769]
[1721523849869,1.06647474,67166.0,67165.0,0.20927172]
[1721523850135,1.06647474,67166.0,67165.0,0.28878759]
[1721523850633,0.91759074,67166.0,67165.0,0.28878759]
[1721523851136,1.06647474,67166.0,67165.0,0.28878759]
[1721523851377,1.06547474,67166.0,67165.0,0.28278759]
[1721523851871,1.06647474,67166.0,67165.0,0.28878759]
[1721523852135,1.06547474,67166.0,67165.0,0.28278606]
[1721523852376,1.06547474,67166.0,67165.0,0.28278607]
[1721523852612,1.06647474,67166.0,67165.0,0.28878607]
[1721523852854,0.91759074,67166.0,67165.0,0.28878607]
[1721523855163,0.91759074,67166.0,67165.0,0.16514941]
[1721523855380,0.81759074,67166.0,67165.0,0.28878589]
[1721523857708,0.8175163,67166.0,67165.0,0.28878589]
[1721523861723,0.8175163,67166.0,67165.0,0.28878778]
[1721523862132,0.8175163,67166.0,67165.0,0.28878732]
[1721523863621,0.9664003,67166.0,67165.0,0.28878732]
[1721523864328,0.9664003,67166.0,67165.0,0.15188732]
[1721523864643,1.2641693,67166.0,67165.0,0.15188732]
[1721523864849,1.2641693,67166.0,67165.0,0.14827317]
[1721523868091,1.2641693,67166.0,67165.0,0.15188236]
[1721523869430,1.5619383,67166.0,67165.0,0.15188236]
[1721523869731,1.5619383,67166.0,67165.0,0.14827181]
[1721523871275,1.5619383,67166.0,67165.0,0.14827315]
[1721523873047,1.56175911,67166.0,67165.0,0.14827315]
[1721523873659,1.56175911,67166.0,67165.0,0.14827332]
[1721523874522,1.56175911,67166.0,67165.0,0.14827335]
[1721523874963,1.56175911,67166.0,67165.0,0.02463354]
[1721523875165,1.56175911,67166.0,67165.0,0.14827361]
[1721523877231,1.60616661,67166.0,67165.0,0.14827361]
[1721523877458,1.60616661,67166.0,67165.0,0.006924]
[1721523877459,1.85952811,67166.0,67165.0,0.006924]
[1721523877673,2.10248308,67166.0,67165.0,0.14827869]
[1721523878499,2.03587739,67166.0,67165.0,0.14827869]
[1721523878695,2.10248308,67166.0,67165.0,0.14827869]
[1721523878895,2.03587739,67166.0,67165.0,0.14827869]
[1721523879653,2.10248308,67166.0,67165.0,0.14827869]
[1721523880215,2.0063338,67166.0,67165.0,0.14827869]
[1721523880392,1.93972811,67166.0,67165.0,0.14827869]
[1721523880587,1.93972811,67166.0,67165.0,0.02463354]
[1721523880811,1.93972811,67166.0,67165.0,0.14827961]
[1721523881020,1.93972811,67166.0,67165.0,0.13057007]
[1721523881213,2.09407768,67166.0,67165.0,0.14827961]
[1721523882417,2.09407768,67166.0,67165.0,0.02463354]
[1721523885856,2.61082842,67166.0,67165.0,0.006924]
[1721523886086,2.82382842,67166.0,67165.0,0.006924]
[1721523886291,2.9347951,67166.0,67165.0,0.006924]
[1721523886482,2.66947885,67166.0,67165.0,0.006924]
[1721523886622,2.78039912,67166.0,67165.0,0.006924]
[1721523887048,2.66947885,67166.0,67165.0,0.006924]
[1721523887409,2.57947885,67166.0,67165.0,0.006924]
[1721523887768,2.73382842,67166.0,67165.0,0.006924]
[1721523887979,2.82382842,67166.0,67165.0,0.006924]
[1721523888188,2.82282842,67166.0,67165.0,0.000924]
[1721523888404,2.73282842,67166.0,67165.0,0.000924]
[1721523888585,2.73482842,67166.0,67165.0,0.000924]
[1721523888795,2.73282842,67166.0,67165.0,0.000924]
[1721523889003,2.82282842,67166.0,67165.0,0.000924]
[1721523889207,2.82982842,67166.0,67165.0,0.000924]
[1721523889336,2.73982842,67166.0,67165.0,0.000924]
[1721523890052,2.82282842,67166.0,67165.0,0.000924]
[1721523890237,2.73282842,67166.0,67165.0,0.000924]
[1721523891287,2.25770985,67166.0,67165.0,0.000924]
[1721523891543,2.446111,67166.0,67165.0,0.000924]
[1721523892375,2.438111,67166.0,67165.0,0.000924]
[1721523892588,2.41594477,67166.0,67165.0,0.000924]
[1721523892792,2.42294477,67166.0,67165.0,0.000924]
[1721523893002,2.41594477,67166.0,67165.0,0.000924]
[1721523893214,2.41594339,67166.0,67165.0,0.000924]
[1721523893419,2.42294339,67166.0,67165.0,0.000924]
[1721523894637,2.32730985,67166.0,67165.0,0.000924]
[1721523894967,2.42294339,67166.0,67165.0,0.000924]
[1721523895601,2.42994339,67166.0,67165.0,0.000924]
[1721523896314,2.34130985,67166.0,67165.0,0.000924]
[1721523897528,2.4077662,67166.0,67165.0,0.000924]
[1721523897730,2.34130985,67166.0,67165.0,0.000924]
[1721523897931,2.79342842,67166.0,67165.0,0.000924]
[1721523898150,3.01719557,67166.0,67165.0,0.000924]
[1721523899353,2.90642842,67166.0,67165.0,0.000924]
[1721523899602,3.01718401,67166.0,67165.0,0.000924]
[1721523899844,2.90642842,67166.0,67165.0,0.000924]
[1721523900525,3.01717352,67166.0,67165.0,0.000924]
[1721523900944,3.06717352,67166.0,67165.0,0.000924]
[1721523901152,3.01717352,67166.0,67165.0,0.000924]
[1721523901555,3.00317352,67166.0,67165.0,0.000924]
[1721523901788,2.89242842,67166.0,67165.0,0.000924]
[1721523901994,3.01015462,67166.0,67165.0,0.000924]
[1721523902744,3.00315462,67166.0,67165.0,0.000924]
[1721523902914,3.01115462,67166.0,67165.0,0.000924]
[1721523904213,3.06115462,67166.0,67165.0,0.000924]
[1721523904616,3.01115462,67166.0,67165.0,0.000924]
[1721523904822,2.90042842,67166.0,67165.0,0.000924]
[1721523905025,3.01113552,67166.0,67165.0,0.000924]
[1721523906417,3.06113552,67166.0,67165.0,0.000924]
[1721523908101,3.0611309,67166.0,67165.0,0.000924]
[1721523908744,3.0111309,67166.0,67165.0,0.000924]
[1721523911113,2.90042842,67166.0,67165.0,0.000924]
[1721523911317,3.01113503,67166.0,67165.0,0.000924]
[1721523911761,3.06113775,67166.0,67165.0,0.000924]
[1721523913088,3.01113775,67166.0,67165.0,0.000924]
[1721523913423,3.06113775,67166.0,67165.0,0.000924]
[1721523913621,2.95042842,67166.0,67165.0,0.000924]
[1721523914586,2.96564164,67166.0,67165.0,0.000924]
[1721523915151,2.91564164,67166.0,67165.0,0.000924]
[1721523916441,2.96564164,67166.0,67165.0,0.000924]
[1721523917045,2.91564164,67166.0,67165.0,0.000924]
[1721523917239,2.96564164,67166.0,67165.0,0.000924]
[1721523917523,2.96562888,67166.0,67165.0,0.000924]
[1721523917933,2.96553349,67166.0,67165.0,0.000924]
[1721523919241,2.85093349,67166.0,67165.0,0.000924]
[1721523919440,2.61638392,67166.0,67165.0,0.000924]
[1721523920821,2.24902185,67166.0,67165.0,0.140724]
[1721523921043,1.96652811,67166.0,67165.0,0.140724]
[1721523921256,0.82433711,67166.0,67165.0,0.15843354]
[1721523921458,0.82433711,67166.0,67165.0,0.28208108]
[1721523921680,0.82433711,67166.0,67165.0,0.28572844]
[1721523922570,0.82433711,67166.0,67165.0,0.1620809]
[1721523923354,0.81633711,67166.0,67165.0,0.1620809]
[1721523923555,0.81633711,67166.0,67165.0,0.1640809]
[1721523925567,0.96522111,67166.0,67165.0,0.1640809]
[1721523929764,1.56075911,67166.0,67165.0,0.1640809]
[1721523929970,1.56075911,67166.0,67165.0,0.002924]
[1721523930151,1.85852811,67166.0,67165.0,0.002924]
[1721523930380,2.01290985,67166.0,67165.0,0.002924]
[1721523930571,2.13590985,67166.0,67165.0,0.002924]
[1721523930985,2.20242571,67166.0,67165.0,0.002924]
[1721523931432,2.20242571,67166.0,67165.0,0.000924]
[1721523931640,2.13590985,67166.0,67165.0,0.000924]
[1721523931842,2.20242571,67166.0,67165.0,0.000924]
[1721523933009,2.20242363,67166.0,67165.0,0.000924]
[1721523933775,2.13590985,67166.0,67165.0,0.000924]
[1721523933997,2.14390985,67166.0,67165.0,0.001924]
[1721523934837,2.13590985,67166.0,67165.0,0.000924]
[1721523935499,2.14390985,67166.0,67165.0,0.001924]
[1721523935702,2.15260721,67166.0,67165.0,0.001924]
[1721523936840,2.37347707,67166.0,67165.0,0.001924]
[1721523938138,2.36547707,67166.0,67165.0,0.000924]
[1721523938727,2.37347707,67166.0,67165.0,0.001924]
[1721523939091,2.3734784,67166.0,67165.0,0.000924]
[1721523939508,2.3784784,67166.0,67165.0,0.001924]
[1721523941781,2.31195678,67166.0,67165.0,0.001924]
[1721523941982,2.29895678,67166.0,67165.0,0.000924]
[1721523942411,2.39465281,67166.0,67165.0,0.001924]
[1721523943439,2.29895678,67166.0,67165.0,0.000924]
[1721523943659,2.29895678,67166.0,67165.0,0.001924]
[1721523943828,2.30395678,67166.0,67165.0,0.001924]
[1721523944029,2.38765281,67166.0,67165.0,0.000924]
[1721523945044,2.29895678,67166.0,67165.0,0.000924]
[1721523946622,2.14442802,67166.0,67165.0,0.000924]
[1721523947274,2.15142802,67166.0,67165.0,0.001924]
[1721523947909,2.14442802,67166.0,67165.0,0.000924]
[1721523948289,2.30377759,67166.0,67165.0,0.001924]
[1721523948632,2.77292591,67166.0,67165.0,0.001924]
[1721523948841,2.76792591,67166.0,67165.0,0.000924]
[1721523949042,2.67924659,67166.0,67165.0,0.000924]
[1721523949245,2.76792876,67166.0,67165.0,0.000924]
[1721523950554,2.15142802,67166.0,67165.0,0.146624]
[1721523950763,2.22102802,67166.0,67165.0,0.146624]
[1721523950967,2.21402802,67166.0,67165.0,0.145624]
[1721523951166,2.21902802,67166.0,67165.0,0.146624]
[1721523951371,2.28554341,67166.0,67165.0,0.146624]
[1721523951585,2.28554531,67166.0,67165.0,0.146624]
[1721523952031,2.28554532,67166.0,67165.0,0.146624]
[1721523953472,2.21902802,67166.0,67165.0,0.146624]
[1721523953677,2.14942802,67166.0,67165.0,0.146624]
[1721523953886,2.21902802,67166.0,67165.0,0.146624]
[1721523961643,2.30775962,67166.0,67165.0,0.146624]
[1721523962155,2.21902802,67166.0,67165.0,0.146624]
[1721523963353,2.28558725,67166.0,67165.0,0.146624]
[1721523965911,2.21902802,67166.0,67165.0,0.146624]
[1721523966310,2.28562155,67166.0,67165.0,0.146624]
[1721523966512,2.21902802,67166.0,67165.0,0.146624]
[1721523969604,2.30784553,67166.0,67165.0,0.146624]
[1721523970207,2.21902802,67166.0,67165.0,0.146624]
[1721523971525,2.33004991,67166.0,67165.0,0.146624]
[1721523972760,2.21902802,67166.0,67165.0,0.146624]
[1721523973616,2.33009665,67166.0,67165.0,0.146624]
[1721523974434,2.21902802,67166.0,67165.0,0.146624]
[1721523974659,2.33013553,67166.0,67165.0,0.146624]
[1721523974842,2.21902802,67166.0,67165.0,0.146624]
[1721523975288,0.91004654,67166.0,67165.0,0.16433354]
[1721523975554,0.82115792,67166.0,67165.0,0.43686812]
[1721523975776,0.82115792,67166.0,67165.0,0.43686156]
[1721523975995,0.82115792,67166.0,67165.0,0.44255491]
[1721523976706,0.81615792,67166.0,67165.0,0.44155491]
[1721523977009,0.81615792,67166.0,67165.0,0.44355491]
[1721523978051,0.81615792,67166.0,67165.0,0.31991389]
[1721523978259,0.81615792,67166.0,67165.0,0.44355429]
[1721523982001,0.81615792,67166.0,67165.0,0.31991389]
[1721523982238,0.81615792,67166.0,67165.0,0.44355089]
[1721523984142,0.81615792,67166.0,67165.0,0.74132489]
[1721523985162,0.81615792,67166.0,67165.0,0.61768789]
[1721523985357,0.81615792,67166.0,67165.0,0.74132489]
[1721523985773,0.81615792,67166.0,67165.0,0.74132488]
[1721523986354,0.81615792,67166.0,67165.0,0.44355088]
[1721523987009,0.81615792,67166.0,67165.0,0.74132488]
[1721523987279,0.81615792,67166.0,67165.0,1.40647288]
[1721523988249,0.81615792,67166.0,67165.0,1.43521763]
[1721523988418,0.81615792,67166.0,67165.0,1.55883745]
[1721523990714,0.81715792,67166.0,67165.0,1.56883745]
[1721523991138,0.81615792,67166.0,67165.0,1.55883745]
[1721523991540,0.81615792,67166.0,67165.0,1.55883629]
[1721523991742,0.81715792,67166.0,67165.0,1.56883629]
[1721523992192,0.81615792,67166.0,67165.0,1.55883629]
[1721523994381,0.81715792,67166.0,67165.0,1.56683629]
[1721523994583,0.81715792,67166.0,67165.0,1.44321763]
[1721523994802,0.81715792,67166.0,67165.0,1.56683629]
[1721523997721,0.81715792,67166.0,67165.0,1.44321763]
[1721523997932,0.81715792,67166.0,67165.0,1.56683625]
[1721523998338,0.81715792,67166.0,67165.0,1.56683628]
[1721523999387,0.81715792,67166.0,67165.0,1.96461028]
[1721523999586,0.81715792,67166.0,67165.0,2.2021891]
[1721523999808,0.81715792,67166.0,67165.0,2.15002556]
[1721524000837,0.81715792,67166.0,67165.0,2.14999176]
[1721524003860,0.81715792,67166.0,67165.0,2.14999356]
[1721524006876,0.81615792,67166.0,67165.0,2.14199356]
[1721524007088,0.81615792,67166.0,67165.0,2.14198594]
[1721524007304,0.81715792,67166.0,67165.0,2.14998594]
[1721524007693,0.81615792,67166.0,67165.0,2.14198594]
[1721524007896,0.81715792,67166.0,67165.0,2.14998594]
[1721524010058,0.81715792,67166.0,67165.0,2.96998594]
[1721524010484,0.81715792,67166.0,67165.0,2.14998594]
[1721524010685,0.81715792,67166.0,67165.0,2.85998594]
[1721524012567,0.81715792,67166.0,67165.0,2.9217815]
[1721524012940,0.81715792,67166.0,67165.0,2.2117815]
[1721524013145,0.81715792,67166.0,67165.0,2.7817815]
[1721524013407,0.81715792,67166.0,67165.0,2.78176272]
[1721524013528,0.81715792,67166.0,67165.0,2.21176272]
[1721524013728,0.81715792,67166.0,67165.0,2.90996716]
[1721524013987,0.81715792,67166.0,67165.0,2.14996716]
[1721524015283,0.81715792,67166.0,67165.0,2.87996716]
[1721524015490,0.81715792,67166.0,67165.0,2.14996716]
[1721524016450,0.81715792,67166.0,67165.0,2.14997361]
[1721524016862,0.81715792,67166.0,67165.0,2.94997361]
[1721524017068,0.81715792,67166.0,67165.0,2.14997361]
[1721524018642,0.81715792,67166.0,67165.0,2.98997361]
[1721524018802,0.81715792,67166.0,67165.0,2.14997361]
[1721524019576,0.81715792,67166.0,67165.0,1.84099163]
[1721524019743,0.81715792,67166.0,67165.0,2.14997363]
[1721524019950,0.81715792,67166.0,67165.0,2.92997363]
[1721524020329,0.81697873,67166.0,67165.0,2.14997363]
[1721524021327,0.81697873,67166.0,67165.0,2.04997363]
[1721524021553,0.81697873,67166.0,67165.0,2.09997363]
[1721524021959,0.81697873,67166.0,67165.0,1.79099163]
[1721524022167,0.81697873,67166.0,67165.0,2.09999025]
[1721524022643,0.81697873,67166.0,67165.0,2.09999048]
[1721524025036,0.81697873,67166.0,67165.0,1.79099163]
[1721524025206,0.81697873,67166.0,67165.0,2.09998908]
[1721524025631,0.81697873,67166.0,67165.0,2.04998908]
[1721524025855,0.81697873,67166.0,67165.0,2.09998908]
[1721524026029,0.81697873,67166.0,67165.0,2.04998908]
[1721524026389,0.81697873,67166.0,67165.0,2.09998908]
[1721524028131,0.81697873,67166.0,67165.0,1.79099163]
[1721524028336,0.81697873,67166.0,67165.0,2.09999125]
[1721524029145,0.81697873,67166.0,67165.0,2.25449105]
[1721524030288,0.81697873,67166.0,67165.0,2.29902597]
[1721524030483,0.81697873,67166.0,67165.0,2.34902597]
[1721524031435,0.81697873,67166.0,67165.0,2.04002635]
[1721524031640,0.81697873,67166.0,67165.0,2.30449104]
[1721524032363,0.81697873,67166.0,67165.0,2.37135442]
[1721524032364,0.81772873,67166.0,67165.0,2.37135442]
[1721524033214,0.81772873,67166.0,67165.0,2.70139965]
[1721524034704,0.81772873,67166.0,67165.0,2.70144029]
[1721524035073,0.81772873,67166.0,67165.0,2.3924437]
[1721524035288,0.81772873,67166.0,67165.0,2.63453379]
[1721524037815,0.81772873,67166.0,67165.0,2.63453355]
[1721524038015,0.81772873,67166.0,67165.0,2.6345335]
[1721524038567,0.81772873,67166.0,67165.0,2.72377114]
[1721524041038,0.81772873,67166.0,67165.0,2.41477411]